bitfinex/quotes_SOLUSD_20250706
["timestamp","ask_amount","ask_price","bid_price","bid_amount"]
[1751787075730,7.54861074,148.4,148.36,23.83435279]
[1751787076022,7.54861074,148.39,148.36,23.83435279]
[1751787076221,7.54861074,148.38,148.36,23.83435279]
[1751787076417,7.54861074,148.37,148.36,23.83435279]
[1751787077431,7.54861074,148.37,148.36,20.02984057]
[1751787077807,7.54861074,148.37,148.36,13.2896199]
[1751787078007,7.54861074,148.37,148.33,26.99094944]
[1751787078312,7.54861074,148.36,148.33,20.2496199]
[1751787078522,7.54861074,148.35,148.33,20.2496199]
[1751787078749,7.54861074,148.34,148.33,20.2496199]
[1751787079716,7.54861074,148.34,148.33,26.99134443]
[1751787079925,7.54861074,148.34,148.33,30.79585665]
[1751787080122,9.41865863,148.38,148.33,30.79585665]
[1751787080331,7.56818417,148.37,148.35,3.80451222]
[1751787080619,7.56818417,148.36,148.35,3.80451222]
[1751787081414,7.56818417,148.36,148.35,10.54532785]
[1751787084030,9.41865863,148.41,148.35,10.54532785]
[1751787084213,7.57111343,148.4,148.38,3.80451222]
[1751787084414,7.57111343,148.39,148.38,10.54396497]
[1751787085115,7.57111343,148.39,148.38,42.48323373]
[1751787086130,9.44865863,148.44,148.38,42.48323373]
[1751787086335,7.5705793,148.43,148.42,3.80451222]
[1751787087933,7.5705793,148.43,148.41,3.80451222]
[1751787088125,7.5705793,148.42,148.41,3.80451222]
[1751787089042,7.5705793,148.42,148.41,6.73809042]
[1751787089212,7.5705793,148.42,148.39,10.5435108]
[1751787089412,7.5705793,148.41,148.39,23.8331307]
[1751787089618,3.83451222,148.44,148.39,23.8331307]
[1751787089819,7.56317826,148.43,148.39,23.8331307]
[1751787090119,7.56317826,148.42,148.39,23.8331307]
[1751787090318,7.56317826,148.41,148.39,23.8331307]
[1751787090626,7.56317826,148.4,148.39,23.8331307]
[1751787092219,7.56317826,148.4,148.39,13.2896199]
[1751787095323,7.56317826,148.4,148.39,17.09413212]
[1751787096539,7.56317826,148.4,148.39,23.8331307]
[1751787097330,10.57132572,148.44,148.39,23.8331307]
[1751787099143,3.80451222,148.43,148.39,23.8331307]
[1751787099448,26.0,148.41,148.36,0.06]
[1751787099632,3.80451222,148.4,148.36,0.06]
[1751787099830,29.80451222,148.41,148.36,0.06]
[1751787100025,3.80451222,148.4,148.36,0.06]
[1751787101651,10.5434179,148.4,148.36,0.06]
[1751787101855,12.69104614,148.4,148.36,0.06]
[1751787102032,17.00662916,148.39,148.36,0.06]
[1751787102233,7.55850185,148.38,148.36,0.06]
[1751787102451,7.55850185,148.37,148.36,0.06]
[1751787115866,13.51064231,148.37,148.36,0.06]
[1751787116041,7.55850185,148.37,148.36,0.06]
[1751787120965,13.51064231,148.37,148.36,0.06]
[1751787121367,29.6986766,148.37,148.36,0.06]
[1751787121582,37.10031676,148.37,148.28,20.03356561]
[1751787121780,37.10031676,148.37,148.29,3.81259224]
[1751787121781,3.81259224,148.34,148.29,3.81259224]
[1751787122066,7.55850185,148.33,148.28,6.74394571]
[1751787122271,7.55850185,148.32,148.29,3.81259224]
[1751787122462,7.55850185,148.31,148.29,3.81259224]
[1751787122645,7.55850185,148.33,148.29,3.81259224]
[1751787122850,7.55850185,148.32,148.29,3.81259224]
[1751787123057,7.55850185,148.31,148.29,3.81259224]
[1751787123261,7.55850185,148.33,148.29,10.55611761]
[1751787123462,7.55850185,148.32,148.29,10.55611761]
[1751787123649,10.55399764,148.34,148.29,3.81259224]
[1751787123650,7.55850185,148.31,148.29,3.81259224]
[1751787123957,7.53961706,148.33,148.29,5.9562659]
[1751787124155,7.53961706,148.32,148.29,5.9562659]
[1751787124361,5.9562659,148.34,148.29,5.9562659]
[1751787124563,7.53737967,148.33,148.3,5.9562659]
[1751787124762,7.53737967,148.32,148.3,5.9562659]
[1751787124960,6.74138276,148.34,148.3,5.9562659]
[1751787125155,7.53739105,148.33,148.3,5.9562659]
[1751787125363,7.53739105,148.32,148.3,5.9562659]
[1751787125665,7.53739105,148.33,148.3,5.9562659]
[1751787125855,6.74138276,148.34,148.3,5.9562659]
[1751787125856,7.53739105,148.32,148.3,5.9562659]
[1751787126055,7.53739105,148.33,148.28,6.7436856]
[1751787126263,7.53739105,148.32,148.29,5.9562659]
[1751787126443,7.53739105,148.33,148.28,6.7436856]
[1751787126647,7.53739105,148.32,148.29,5.9562659]
[1751787126846,20.23576744,148.33,148.28,5.9562659]
[1751787127150,7.53739105,148.32,148.28,5.9562659]
[1751787127547,7.53739105,148.32,148.28,19.2458858]
[1751787132372,7.53739105,148.32,148.28,25.98980623]
[1751787133061,13.49365695,148.33,148.28,25.98980623]
[1751787133249,20.23539186,148.33,148.28,25.98980623]
[1751787133450,7.53739105,148.32,148.28,25.98980623]
[1751787137385,7.52782596,148.32,148.28,25.98980623]
[1751787137559,13.48409186,148.32,148.28,20.03354033]
[1751787137758,13.48409186,148.32,148.28,20.09354033]
[1751787139466,5.9562659,148.31,148.28,0.06]
[1751787139670,13.48409186,148.31,148.28,0.06]
[1751787140256,7.52782596,148.31,148.28,0.06]
[1751787141964,13.48409186,148.31,148.28,0.06]
[1751787142384,7.52782596,148.3,148.28,0.06]
[1751787143968,13.48409186,148.3,148.28,0.06]
[1751787144487,13.48409186,148.29,148.28,0.06]
[1751787145785,11.34242847,148.29,148.28,0.06]
[1751787147174,7.52782596,148.29,148.28,0.06]
[1751787148394,11.34242847,148.29,148.28,0.06]
[1751787150301,7.52782596,148.29,148.28,0.06]
[1751787153105,10.55736101,148.31,148.28,0.06]
[1751787153283,7.53969972,148.3,148.28,0.06]
[1751787153588,7.53969972,148.29,148.28,0.06]
[1751787162502,7.53969972,148.29,148.28,3.87460251]
[1751787162802,7.53969972,148.29,148.28,0.06]
[1751787162992,7.53969972,148.29,148.28,6.80399784]
[1751787163303,7.53969972,148.29,148.28,20.09361774]
[1751787166103,7.53969972,148.29,148.28,13.3496199]
[1751787169020,7.53969972,148.29,148.28,0.06]
[1751787176622,7.57722425,148.29,148.28,0.06]
[1751787180234,7.57722425,148.29,148.28,0.06]
[1751787186326,17.04875456,148.29,148.28,0.06]
[1751787187230,23.79229761,148.29,148.28,0.06]
[1751787188116,17.04875456,148.29,148.28,0.06]
[1751787193930,27.60690012,148.29,148.28,0.06]
[1751787194117,18.13536981,148.29,148.23,17.10422241]
[1751787194317,17.05768953,148.28,148.23,17.10422241]
[1751787194517,7.57722425,148.27,148.23,17.10422241]
[1751787194734,7.57722425,148.26,148.23,23.85039215]
[1751787194910,7.57722425,148.25,148.23,23.85039215]
[1751787195234,7.57722425,148.24,148.23,23.85039215]
[1751787198044,7.57722425,148.24,148.23,20.03578964]
[1751787198250,7.57722425,148.24,148.23,17.10422241]
[1751787199638,7.57722425,148.24,148.23,23.85049509]
[1751787202853,19.34119994,148.29,148.23,23.85049509]
[1751787202854,9.48046528,148.29,148.23,23.85049509]
[1751787203057,7.57529825,148.28,148.26,3.81460251]
[1751787203257,7.57529825,148.27,148.26,3.81460251]
[1751787203561,7.57529825,148.27,148.25,3.81460251]
[1751787203717,7.57529825,148.26,148.25,3.81460251]
[1751787203920,7.57529825,148.26,148.25,10.55996507]
[1751787204533,9.48046528,148.31,148.25,23.84958497]
[1751787204841,7.57454342,148.3,148.27,3.81460251]
[1751787205021,7.57454342,148.29,148.27,3.81460251]
[1751787205346,7.57454342,148.28,148.27,3.81460251]
[1751787205644,7.57454342,148.28,148.27,17.10422241]
[1751787207739,7.57454342,148.28,148.27,13.2896199]
[1751787210448,7.57454342,148.28,148.26,23.84892825]
[1751787210747,7.57454342,148.27,148.26,23.84892825]
[1751787214056,7.57454342,148.27,148.26,20.03432574]
[1751787214260,7.57454342,148.27,148.26,23.84892825]
[1751787215855,7.57454342,148.27,148.26,13.2896199]
[1751787216152,7.57454342,148.27,148.26,17.10422241]
[1751787216366,7.57454342,148.27,148.26,3.81460251]
[1751787228468,7.57454342,148.27,148.25,23.90951548]
[1751787228678,7.57454342,148.26,148.25,23.90951548]
[1751787229563,7.57454342,148.26,148.25,17.16422241]
[1751787230360,7.57454342,148.26,148.25,23.90958497]
[1751787260600,7.57454342,148.26,148.25,0.06]
[1751787260802,7.57454342,148.26,148.25,10.61996507]
[1751787261998,7.57454342,148.26,148.25,3.87460251]
[1751787262690,7.57454342,148.26,148.25,10.61996507]
[1751787268400,7.57454342,148.26,148.25,0.06]
[1751787268697,7.57454342,148.26,148.25,3.87460251]
[1751787269510,7.57454342,148.26,148.25,29.87460251]
[1751787269723,0.03,148.28,148.27,26.0]
[1751787270011,0.03,148.28,148.27,3.81460251]
[1751787271410,0.03,148.28,148.27,10.55905519]
[1751787275808,0.03,148.28,148.26,6.74490759]
[1751787275996,0.03,148.28,148.27,3.81460251]
[1751787278612,0.03,148.28,148.27,23.84867509]
[1751787281691,7.61415661,148.28,148.27,23.84867509]
[1751787285018,6.61415661,148.28,148.27,23.84867509]
[1751787288722,6.64415661,148.28,148.27,23.84867509]
[1751787293313,6.64415661,148.28,148.27,20.03407258]
[1751787293517,6.64415661,148.28,148.27,13.2896199]
[1751787293720,6.64415661,148.28,148.25,23.90931743]
[1751787293920,0.03,148.28,148.25,13.3496199]
[1751787294718,0.03,148.28,148.25,17.16422241]
[1751787295321,0.03,148.28,148.25,13.3496199]
[1751787295508,0.03,148.28,148.25,17.16422241]
[1751787297129,7.58253909,148.27,148.25,17.16422241]
[1751787297314,7.58253909,148.26,148.25,17.16422241]
[1751787300432,7.58253909,148.26,148.25,0.06]
[1751787300910,7.58253909,148.26,148.25,3.87460251]
[1751787301713,7.58253909,148.26,148.25,10.61996507]
[1751787303234,0.03,148.28,148.25,23.90958497]
[1751787303420,0.03,148.28,148.27,3.81460251]
[1751787303626,7.60827104,148.28,148.27,3.81460251]
[1751787308020,7.60827104,148.28,148.27,17.10422241]
[1751787312959,14.35245291,148.28,148.25,0.06]
[1751787313128,7.57827104,148.27,148.25,0.06]
[1751787313448,7.57827104,148.26,148.25,0.06]
[1751787333999,14.32317863,148.26,148.25,0.06]
[1751787334169,18.13778114,148.26,148.25,0.06]
[1751787334338,27.61824642,148.26,148.25,0.06]
[1751787334539,18.13778114,148.26,148.22,0.06]
[1751787334759,17.03963003,148.25,148.22,0.06]
[1751787334965,7.57827104,148.24,148.22,0.06]
[1751787335157,7.57827104,148.23,148.22,0.06]
[1751787336364,7.57827104,148.23,148.22,3.87460251]
[1751787338653,11.39287355,148.23,148.22,0.06]
[1751787338852,17.03963003,148.23,148.22,0.06]
[1751787339058,7.57827104,148.23,148.22,3.87460251]
[1751787339571,7.57827104,148.23,148.22,0.06]
[1751787360776,7.57827104,148.23,148.22,3.87460251]
[1751787362179,7.57827104,148.23,148.22,10.62133034]
[1751787364290,7.57827104,148.23,148.22,23.91095024]
[1751787366879,7.57827104,148.23,148.22,17.16422241]
[1751787369587,7.57827104,148.23,148.22,13.3496199]
[1751787370179,7.57827104,148.23,148.22,0.06]
[1751787372579,7.57827104,148.23,148.22,3.87460251]
[1751787373788,7.57827104,148.23,148.22,0.06]
[1751787374089,7.57827104,148.23,148.22,3.87460251]
[1751787378283,7.57827104,148.23,148.22,0.06]
[1751787381094,7.57827104,148.23,148.22,3.87460251]
[1751787382591,7.57827104,148.23,148.22,0.06]
[1751787404207,17.03963003,148.23,148.22,0.06]
[1751787404416,7.57827104,148.23,148.22,0.06]
[1751787411827,7.58721469,148.23,148.22,0.06]
[1751787412320,17.07123306,148.23,148.22,0.06]
[1751787416428,17.07123306,148.23,148.22,3.87460251]
[1751787416605,7.58721469,148.23,148.22,3.87460251]
[1751787417516,7.58721469,148.23,148.22,17.16422241]
[1751787417714,7.58721469,148.23,148.22,23.91095024]
[1751787420737,7.58721469,148.23,148.22,20.09634773]
[1751787420915,7.58721469,148.23,148.22,23.91095024]
[1751787428459,7.57999698,148.23,148.22,23.91095024]
[1751787437454,7.57999698,148.23,148.22,20.09634773]
[1751787437637,7.57999698,148.23,148.22,23.91095024]
[1751787444460,7.57999698,148.23,148.22,13.3496199]
[1751787444768,7.57999698,148.23,148.22,17.16422241]
[1751787455260,7.57999698,148.23,148.22,23.91095024]
[1751787455771,7.57999698,148.23,148.22,20.09634773]
[1751787456065,7.57999698,148.23,148.22,23.91095024]
[1751787457368,7.57999698,148.23,148.22,68.5605991]
[1751787457545,0.03,148.25,148.22,42.40296983]
[1751787457743,0.03,148.25,148.24,29.81460251]
[1751787457945,7.614921,148.25,148.24,29.81460251]
[1751787458144,0.03,148.25,148.24,29.81460251]
[1751787459272,0.03,148.25,148.24,36.5604201]
[1751787460580,0.03,148.25,148.24,36.5604201]
[1751787461870,0.03,148.25,148.24,49.85004]
[1751787482795,0.03,148.25,148.24,49.91004]
[1751787485778,0.03,148.25,148.24,46.09543749]
[1751787486084,0.03,148.25,148.24,49.91004]
[1751787488501,0.03,148.25,148.24,23.91004]
[1751787489387,0.03,148.25,148.24,20.09543749]
[1751787489994,7.59597195,148.25,148.24,20.09543749]
[1751787492705,7.59597195,148.25,148.24,23.91004]
[1751787493506,0.03,148.25,148.24,23.91004]
[1751787496478,0.03,148.28,148.25,18.64964886]
[1751787496701,0.03,148.28,148.27,3.81460251]
[1751787497817,0.03,148.28,148.27,10.55905519]
[1751787500430,0.03,148.28,148.27,23.84867509]
[1751787505918,7.60302637,148.28,148.27,23.84867509]
[1751787510120,0.03,148.28,148.27,23.84867509]
[1751787516601,6.7412793,148.34,148.27,23.84867509]
[1751787516602,7.56846907,148.31,148.3,26.0]
[1751787516914,9.49294971,148.37,148.3,48.46425137]
[1751787517118,7.5676717,148.36,148.33,3.81460251]
[1751787517310,7.5676717,148.35,148.33,3.81460251]
[1751787517627,7.5676717,148.34,148.33,3.81460251]
[1751787518934,7.5676717,148.34,148.31,6.74261528]
[1751787519116,7.5676717,148.33,148.31,6.74261528]
[1751787519317,7.5676717,148.32,148.31,6.74261528]
[1751787520934,7.5676717,148.32,148.29,6.74354305]
[1751787521229,7.56134533,148.31,148.29,6.74354305]
[1751787521530,3.81460251,148.33,148.29,6.74354305]
[1751787521724,7.56113793,148.32,148.29,6.74354305]
[1751787521925,7.56113793,148.31,148.29,6.74354305]
[1751787522115,3.81460251,148.33,148.29,6.74354305]
[1751787522318,7.5610092,148.32,148.29,6.74354305]
[1751787522521,7.5610092,148.31,148.29,6.74354305]
[1751787522826,7.5610092,148.3,148.29,6.74354305]
[1751787523016,7.5610092,148.3,148.29,20.03316295]
[1751787526340,7.5610092,148.3,148.29,23.84776546]
[1751787526518,7.5610092,148.3,148.29,20.03316295]
[1751787529046,7.5610092,148.3,148.29,23.84776546]
[1751787529246,0.03,148.32,148.29,23.84776546]
[1751787529426,7.56270997,148.31,148.29,23.84776546]
[1751787529724,0.03,148.32,148.29,23.84776546]
[1751787529926,7.56270997,148.31,148.29,23.84776546]
[1751787530141,0.03,148.32,148.29,23.84776546]
[1751787530325,7.56270997,148.31,148.29,23.84776546]
[1751787530518,0.03,148.32,148.29,23.84776546]
[1751787530819,7.56291096,148.31,148.29,23.84776546]
[1751787531118,0.03,148.32,148.29,23.84776546]
[1751787531319,7.56291096,148.31,148.29,23.84776546]
[1751787531529,0.03,148.32,148.29,23.84776546]
[1751787531723,7.56315996,148.31,148.29,23.84776546]
[1751787531933,0.03,148.32,148.29,23.84776546]
[1751787532137,7.56315996,148.31,148.29,23.84776546]
[1751787532431,0.03,148.32,148.29,23.84776546]
[1751787532632,7.56346827,148.31,148.29,23.84776546]
[1751787532939,0.03,148.32,148.29,23.84776546]
[1751787533143,7.56346827,148.31,148.29,23.84776546]
[1751787533441,0.03,148.32,148.29,23.84776546]
[1751787533619,7.56383542,148.31,148.29,23.84776546]
[1751787533820,0.03,148.32,148.29,23.84776546]
[1751787534020,7.56383542,148.31,148.29,23.84776546]
[1751787534242,0.03,148.32,148.29,23.84776546]
[1751787534413,7.56487504,148.31,148.29,23.84776546]
[1751787534613,7.56487504,148.3,148.29,23.84776546]
[1751787538029,7.56487504,148.3,148.29,20.03316295]
[1751787538230,7.56487504,148.3,148.29,17.10422241]
[1751787538435,7.56487504,148.3,148.29,13.2896199]
[1751787540443,7.56487504,148.3,148.29,20.03316295]
[1751787542852,7.56487504,148.3,148.29,23.84776546]
[1751787544172,7.56487504,148.3,148.29,20.03316295]
[1751787547746,7.59487504,148.3,148.29,13.2896199]
[1751787550337,11.40947755,148.3,148.28,0.06]
[1751787550554,11.37947755,148.29,148.28,0.06]
[1751787551855,20.84242726,148.29,148.28,0.06]
[1751787552860,11.37947755,148.29,148.28,0.06]
[1751787555651,7.56487504,148.29,148.28,0.06]
[1751787556369,7.57311163,148.29,148.28,0.06]
[1751787560673,7.57311163,148.29,148.28,3.87460251]
[1751787562154,7.57311163,148.29,148.28,10.61860035]
[1751787562473,7.57157764,148.29,148.28,10.61860035]
[1751787565478,7.57157764,148.29,148.28,23.90822025]
[1751787569074,7.60157764,148.29,148.28,23.90822025]
[1751787581717,7.60157764,148.29,148.28,13.3496199]
[1751787583194,7.60157764,148.29,148.28,0.06]
[1751787585192,0.03,148.29,148.28,0.06]
[1751787585394,7.60509924,148.29,148.28,0.06]
[1751787589681,18.1632448,148.29,148.28,0.06]
[1751787590486,11.41970175,148.29,148.28,0.06]
[1751787592481,11.41889194,148.29,148.28,0.06]
[1751787594083,20.88675373,148.29,148.28,0.06]
[1751787597407,11.41889194,148.29,148.28,0.06]
[1751787599705,18.16243499,148.29,148.28,0.06]
[1751787600707,11.41889194,148.29,148.28,0.06]
[1751787604289,7.60428943,148.29,148.28,0.06]
[1751787604490,11.41889194,148.29,148.28,0.06]
[1751787605611,18.16243499,148.29,148.28,0.06]
[1751787606089,27.63029678,148.29,148.28,0.06]
[1751787618237,18.16243499,148.29,148.25,0.06]
[1751787618408,20.85467799,148.28,148.25,0.06]
[1751787618607,7.57428943,148.27,148.25,0.06]
[1751787618806,7.57428943,148.26,148.25,0.06]
[1751787630139,11.38889194,148.26,148.25,0.06]
[1751787632142,20.85467799,148.26,148.25,0.06]
[1751787632347,27.59958558,148.26,148.25,0.06]
[1751787632529,27.59958558,148.26,148.25,0.01300511]
[1751787632530,18.13379953,148.26,148.25,0.01300511]
[1751787633127,18.13379953,148.26,148.24,0.06]
[1751787633323,20.86621901,148.25,148.24,0.06]
[1751787633743,7.57428943,148.25,148.24,0.06]
[1751787656264,6.74490759,148.26,148.24,0.06]
[1751787656650,3.81460251,148.27,148.24,0.06]
[1751787658044,17.04185604,148.26,148.24,0.06]
[1751787658356,7.57415824,148.25,148.24,0.06]
[1751787667252,17.04185604,148.25,148.24,0.06]
[1751787669752,7.57415824,148.25,148.24,0.06]
[1751787681086,7.60415824,148.25,148.24,0.06]
[1751787710208,17.07185604,148.25,148.24,0.06]
[1751787723549,23.8172186,148.25,148.24,0.06]
[1751787723729,14.3495208,148.25,148.23,13.2896199]
[1751787723928,17.06835578,148.24,148.23,13.2896199]
[1751787724331,7.57415824,148.24,148.23,13.2896199]
[1751787724540,17.06493201,148.24,148.23,13.2896199]
[1751787725248,17.06493201,148.24,148.22,0.06]
[1751787725448,7.57415824,148.23,148.22,0.06]
[1751787733143,6.77547576,148.25,148.22,0.06]
[1751787734267,7.58655955,148.24,148.22,0.06]
[1751787734554,7.58655955,148.23,148.22,0.06]
[1751787745477,14.33283223,148.23,148.22,0.06]
[1751787745678,23.81603167,148.23,148.22,0.06]
[1751787749295,27.63063418,148.23,148.22,0.06]
[1751787754515,23.81603167,148.23,148.22,0.06]
[1751787760215,27.63063418,148.23,148.22,0.06]
[1751787764217,18.14743474,148.23,148.21,0.2]
[1751787764416,20.87107912,148.22,148.21,0.2]
[1751787768521,23.80320444,148.22,148.21,0.2]
[1751787768714,27.61780695,148.22,148.21,0.2]
[1751787772631,27.61780695,148.22,148.21,0.03448791]
[1751787772820,18.14788989,148.22,148.21,0.03448791]
[1751787775433,18.13328697,148.22,148.21,0.03448791]
[1751787779135,18.13328697,148.22,148.2,0.2]
[1751787779337,23.78444123,148.21,148.2,0.2]
[1751787783929,17.03725818,148.21,148.2,0.2]
[1751787787542,17.04447302,148.21,148.2,0.2]
[1751787790948,17.07447302,148.21,148.2,0.2]
[1751787795146,7.60532134,148.21,148.2,0.2]
[1751787797525,7.60532134,148.21,148.19,0.06]
[1751787797727,17.05028088,148.2,148.19,0.06]
[1751787800631,7.57532134,148.2,148.19,0.06]
[1751787806451,7.57532134,148.2,148.19,3.87460251]
[1751787808037,7.57532134,148.2,148.19,44.67460251]
[1751787808536,7.57532134,148.2,148.19,51.42269617]
[1751787811039,7.57532134,148.2,148.19,53.07779617]
[1751787811464,7.57532134,148.2,148.19,49.26319366]
[1751787811639,7.57532134,148.2,148.19,53.07779617]
[1751787812360,0.03,148.21,148.19,53.07779617]
[1751787813938,0.03,148.21,148.2,3.81460251]
[1751787814137,7.60370857,148.21,148.2,3.81460251]
[1751787819876,7.60370857,148.21,148.2,44.61460251]
[1751787820967,7.60370857,148.21,148.2,40.8]
[1751787821173,7.60370857,148.21,148.2,44.61460251]
[1751787824570,7.60370857,148.21,148.2,40.8]
[1751787825873,14.35089162,148.21,148.2,40.8]
[1751787827877,14.35089162,148.21,148.19,0.06]
[1751787828059,7.57370857,148.2,148.19,0.06]
[1751787829278,7.57370857,148.2,148.18,3.37460251]
[1751787829472,7.57370857,148.19,148.18,3.37460251]
[1751787831071,0.03,148.21,148.18,3.37460251]
[1751787831284,7.5713267,148.2,148.18,3.37460251]
[1751787831587,7.5713267,148.19,148.18,3.37460251]
[1751787831884,7.5713267,148.19,148.18,44.17460251]
[1751787833989,7.5713267,148.19,148.18,44.23460251]
[1751787834493,7.5713267,148.19,148.18,43.73460251]
[1751787840706,7.5713267,148.19,148.18,50.48315157]
[1751787840912,0.03,148.21,148.18,50.48315157]
[1751787841080,0.03,148.21,148.2,3.81460251]
[1751787841398,0.03,148.21,148.2,10.56224083]
[1751787841399,7.60712368,148.21,148.2,10.56224083]
[1751787843470,7.60712368,148.21,148.2,51.36224083]
[1751787846877,7.60781674,148.21,148.2,51.36224083]
[1751787848413,7.60781674,148.21,148.2,50.86224083]
[1751787852281,7.60781674,148.21,148.2,40.8]
[1751787852488,7.60781674,148.21,148.19,44.61460251]
[1751787852802,7.57781674,148.2,148.19,44.61460251]
[1751787856308,7.57781674,148.2,148.19,44.11460251]
[1751787856901,7.57781674,148.2,148.18,0.06]
[1751787857196,0.03,148.21,148.19,3.81460251]
[1751787857400,7.57837898,148.2,148.18,6.80844445]
[1751787857588,7.57837898,148.19,148.18,6.80844445]
[1751787857789,0.03,148.21,148.18,6.80844445]
[1751787857991,7.57864571,148.2,148.18,6.80844445]
[1751787858184,0.03,148.21,148.18,6.80844445]
[1751787858391,7.57872609,148.2,148.18,0.06]
[1751787858707,0.03,148.21,148.19,3.81460251]
[1751787858896,0.03,148.21,148.2,3.81460251]
[1751787859193,7.60873798,148.21,148.2,3.81460251]
[1751787861211,7.60873798,148.21,148.2,3.31460251]
[1751787861410,7.60873798,148.21,148.2,44.11460251]
[1751787866316,7.60873798,148.21,148.2,43.61460251]
[1751787867919,7.60873798,148.21,148.2,40.8]
[1751787873220,7.60873798,148.21,148.19,3.81460251]
[1751787873422,7.57873798,148.2,148.19,3.81460251]
[1751787877026,7.57873798,148.2,148.19,10.56269617]
[1751787877605,7.57873798,148.2,148.19,10.62269617]
[1751787879124,7.57873798,148.2,148.19,51.42269617]
[1751787881628,7.57873798,148.2,148.19,47.60809366]
[1751787881816,7.57873798,148.2,148.19,51.42269617]
[1751787882133,7.57873798,148.2,148.19,44.67460251]
[1751787884329,7.57873798,148.2,148.19,51.42269617]
[1751787887536,7.57873798,148.2,148.19,40.86]
[1751787887737,7.57873798,148.2,148.19,44.67460251]
[1751787890424,0.03,148.21,148.19,44.67460251]
[1751787890623,7.58166844,148.2,148.19,44.67460251]
[1751787892537,7.58166844,148.2,148.19,51.42269617]
[1751787895316,0.03,148.21,148.19,51.42269617]
[1751787895517,0.03,148.21,148.2,3.81460251]
[1751787895826,7.61514293,148.21,148.2,3.81460251]
[1751787896028,7.61514293,148.21,148.2,10.56224083]
[1751787896243,7.61512899,148.21,148.2,10.56224083]
[1751787899829,7.61512899,148.21,148.2,51.36224083]
[1751787900641,7.61512899,148.21,148.2,44.61460251]
[1751787901953,7.61319772,148.21,148.2,44.61460251]
[1751787920746,7.61319772,148.21,148.2,40.8]
[1751787927264,23.83937792,148.21,148.19,0.06]
[1751787927461,7.58319772,148.2,148.19,0.06]
[1751787942485,7.61319772,148.2,148.19,0.06]
[1751787942659,7.6054679,148.2,148.19,0.06]
[1751787977100,17.07480277,148.2,148.19,0.06]
[1751787992511,7.6054679,148.2,148.19,3.87460251]
[1751787995117,7.6054679,148.2,148.19,10.62269617]
[1751787997628,7.6054679,148.2,148.19,51.42269617]
[1751788003329,7.6054679,148.2,148.19,47.60809366]
[1751788003522,7.6054679,148.2,148.19,51.42269617]
[1751788011639,7.6054679,148.2,148.19,40.86]
[1751788029757,7.6054679,148.2,148.19,44.67460251]
[1751788034043,7.6054679,148.2,148.19,51.42269617]
[1751788039663,7.6054679,148.2,148.19,47.60809366]
[1751788039863,7.6054679,148.2,148.19,51.42269617]
[1751788043659,7.6054679,148.2,148.19,44.67460251]
[1751788046079,7.6054679,148.2,148.19,51.42269617]
[1751788049889,7.6054679,148.2,148.19,44.67460251]
[1751788053700,7.6054679,148.2,148.19,40.86]
[1751788058691,14.35310622,148.2,148.19,40.86]
[1751788061286,7.6054679,148.2,148.19,40.86]
[1751788061863,44.39255759,148.2,148.18,0.06]
[1751788062072,26.0,148.17,148.11,0.2]
[1751788062296,7.5754679,148.16,148.13,3.81460251]
[1751788062494,7.5754679,148.15,148.13,3.81460251]
[1751788062787,7.5754679,148.14,148.13,3.81460251]
[1751788062983,7.5754679,148.14,148.11,0.2]
[1751788063189,6.74905501,148.17,148.13,3.81460251]
[1751788063489,7.56506427,148.16,148.14,3.81460251]
[1751788063689,7.56506427,148.15,148.14,3.81460251]
[1751788064308,7.56506427,148.15,148.13,3.81460251]
[1751788064515,7.56506427,148.14,148.13,3.81460251]
[1751788066412,6.74905794,148.17,148.13,3.81460251]
[1751788066621,7.55298263,148.16,148.13,3.81460251]
[1751788066814,7.55298263,148.15,148.13,3.81460251]
[1751788067004,6.74905794,148.17,148.13,3.81460251]
[1751788067314,7.55298263,148.16,148.15,3.81460251]
[1751788072914,7.55298263,148.16,148.14,10.56496742]
[1751788073111,32.74818495,148.19,148.14,10.56496742]
[1751788073312,7.54770891,148.18,148.14,10.56496742]
[1751788073512,7.54770891,148.17,148.14,10.56496742]
[1751788073714,7.57770891,148.16,148.14,10.56496742]
[1751788073918,0.03,148.16,148.14,10.56496742]
[1751788077328,0.03,148.16,148.14,51.36496742]
[1751788082531,0.03,148.16,148.14,47.55036491]
[1751788094248,0.03,148.16,148.14,40.8]
[1751788094653,0.03,148.16,148.14,47.55036896]
[1751788095465,7.55988952,148.15,148.14,47.55036896]
[1751788095851,7.55988952,148.15,148.14,40.8]